fUST/lending_fUST_20250201
["ID","MTS","AMOUNT","RATE_DAILY","PERIOD"]
[351195259,1738408239612,-151.0,0.00017347,2]
[351195261,1738408239621,-151.0,0.00017347,2]
[351195263,1738408239630,-152.059088,0.00017347,2]
[351195265,1738408239640,-151.0,0.00017395,2]
[351195268,1738408239650,-500.0,0.00017397,2]
[351195270,1738408239660,-500.0,0.00017397,2]
[351195272,1738408239670,-500.0,0.00017397,2]
[351195274,1738408239679,-1899.62,0.00017397,2]
[351195276,1738408239688,-500.0,0.00017397,2]
[351195278,1738408239697,-1042.2,0.00017397,2]
[351195280,1738408239706,-754.31,0.00017397,2]
[351195282,1738408239715,-500.0,0.00017397,2]
[351195284,1738408239724,-2034.67,0.00017397,2]
[351195286,1738408239733,-152.167019,0.00017455,2]
[351195288,1738408239743,-461.0832715,0.00017507,2]
[351195290,1738408239752,-310.3641415,0.00017507,2]
[351195292,1738408239763,-403.99643303,0.00017521,2]
[351195294,1738408239772,-151.0,0.00017521,2]
[351195296,1738408239783,-151.0,0.00017521,2]
[351195298,1738408239792,-152.090474,0.00017526,2]
[351195300,1738408239801,-151.0,0.00017526,2]
[351195302,1738408239811,-186.564853,0.00017526,2]
[351195304,1738408239820,-500.0,0.00017533,2]
[351195306,1738408239829,-151.0,0.00017534,2]
[351195308,1738408239838,-187.536571,0.00017534,2]
[351195310,1738408239847,-500.0,0.00017534,2]
[351195312,1738408239857,-500.0,0.00017534,2]
[351195314,1738408239866,-151.0,0.00017534,2]
[351195316,1738408239879,-500.0,0.00017534,2]
[351195318,1738408239888,-151.0,0.00017534,2]
[351195320,1738408239898,-1899.62,0.00017534,2]
[351195322,1738408239908,-500.0,0.00017534,2]
[351195324,1738408239917,-1042.2,0.00017534,2]
[351195326,1738408239927,-151.0,0.00017534,2]
[351195328,1738408239937,-754.31,0.00017534,2]
[351195330,1738408239949,-151.0,0.00017534,2]
[351195332,1738408239958,-386.88338021,0.00017534,2]
[351195334,1738408239968,-151.0,0.00017534,2]
[351195336,1738408239977,-151.0,0.00017534,2]
[351195338,1738408239988,-2034.67,0.00017534,2]
[351195340,1738408239998,-681.67171142,0.00017575,2]
[351195343,1738408240007,-161.317887,0.0001764,3]
[351195345,1738408240018,-500.0,0.00017671,2]
[351195347,1738408240028,-383.98,0.00017671,2]
[351195349,1738408240037,-500.0,0.00017671,2]
[351195351,1738408240046,-1899.62,0.00017671,2]
[351195353,1738408240056,-500.0,0.00017671,2]
[351195355,1738408240065,-1042.2,0.00017671,2]
[351195357,1738408240074,-754.31,0.00017671,2]
[351195359,1738408240084,-2034.67,0.00017671,2]
[351195361,1738408240093,-281.305801,0.000177,2]
[351195363,1738408240102,-403.99643303,0.00017728,2]
[351195365,1738408240112,-153.0,0.00017785,2]
[351195367,1738408240121,-153.0,0.00017785,2]
[351195369,1738408240131,-153.0,0.00017785,2]
[351195371,1738408240140,-153.0,0.00017785,2]
[351195373,1738408240149,-153.0,0.00017785,2]
[351195385,1738408240239,-153.0,0.00017785,2]
[351195387,1738408240260,-153.0,0.00017785,2]
[351195389,1738408240269,-200.0,0.00017785,2]
[351195391,1738408240280,-200.0,0.00017785,2]
[351195393,1738408240289,-200.0,0.00017785,2]
[351195395,1738408240298,-200.0,0.00017785,2]
[351195397,1738408240307,-200.0,0.00017785,2]
[351195399,1738408240316,-200.0,0.00017785,2]
[351195401,1738408240325,-200.0,0.00017785,2]
[351195403,1738408240334,-200.0,0.00017785,2]
[351195405,1738408240343,-200.0,0.00017785,2]
[351195407,1738408240353,-200.0,0.00017785,2]
[351195409,1738408240362,-200.0,0.00017785,2]
[351195411,1738408240371,-200.0,0.00017785,2]
[351195413,1738408240381,-200.0,0.00017785,2]
[351195415,1738408240390,-200.0,0.00017785,2]
[351195417,1738408240399,-153.0,0.00017788,2]
[351195419,1738408240408,-153.0,0.00017788,2]
[351195421,1738408240417,-153.0,0.00017788,2]
[351195423,1738408240427,-200.0,0.00017788,2]
[351195425,1738408240436,-200.0,0.00017788,2]
[351195427,1738408240445,-200.0,0.00017788,2]
[351195429,1738408240454,-200.0,0.00017788,2]
[351195431,1738408240463,-200.0,0.00017788,2]
[351195433,1738408240472,-200.0,0.00017788,2]
[351195435,1738408240482,-200.0,0.00017788,2]
[351195437,1738408240492,-200.0,0.00017788,2]
[351195439,1738408240502,-200.0,0.00017788,2]
[351195441,1738408240511,-200.0,0.00017788,2]
[351195443,1738408240520,-200.0,0.00017788,2]
[351195445,1738408240530,-200.0,0.00017788,2]
[351195447,1738408240539,-200.0,0.00017788,2]
[351195449,1738408240548,-500.0,0.00017795,2]
[351195451,1738408240558,-151.0,0.00017796,2]
[351195453,1738408240567,-151.0,0.00017796,2]
[351195455,1738408240578,-151.0,0.00017796,2]
[351195457,1738408240587,-214.351317,0.00017796,2]
[351195459,1738408240597,-187.54262,0.00017796,2]
[351195461,1738408240607,-154.256859,0.00017806,2]
[351195463,1738408240617,-166.209885,0.00017806,2]
[351195465,1738408240626,-166.209885,0.00017806,2]
[351195467,1738408240635,-151.0,0.00017807,2]
[351195469,1738408240644,-151.0,0.00017807,2]
[351195471,1738408240654,-151.0,0.00017807,2]
[351195473,1738408240663,-151.0,0.00017808,2]
[351195475,1738408240673,-500.0,0.00017808,2]
[351195477,1738408240682,-500.0,0.00017808,2]
[351195479,1738408240691,-1899.62,0.00017808,2]
[351195481,1738408240701,-500.0,0.00017808,2]
[351195483,1738408240710,-1042.2,0.00017808,2]
[351195485,1738408240719,-151.0,0.00017808,2]
[351195487,1738408240729,-754.31,0.00017808,2]
[351195489,1738408240738,-151.0,0.00017808,2]
[351195491,1738408240747,-151.0,0.00017808,2]
[351195492,1738408240756,-2034.67,0.00017808,2]
[351195495,1738408240765,-151.0,0.00017813,2]
[351195497,1738408240775,-186.564853,0.00017815,2]
[351195499,1738408240785,-151.0,0.00017816,2]
[351195501,1738408240795,-500.13869472,0.0001789,2]
[351195503,1738408240803,-152.0,0.00017926,2]
[351195505,1738408240813,-175.07,0.00017926,2]
[351195507,1738408240822,-153.0,0.00017926,2]
[351195509,1738408240832,-155.0,0.00017926,2]
[351195511,1738408240841,-403.99643303,0.00017934,2]
[351195513,1738408240851,-151.0,0.00017943,2]
[351195515,1738408240860,-151.0,0.00017943,2]
[351195517,1738408240874,-500.0,0.00017945,2]
[351195519,1738408240883,-500.0,0.00017945,2]
[351195521,1738408240893,-1899.62,0.00017945,2]
[351195523,1738408240903,-500.0,0.00017945,2]
[351195525,1738408240914,-1042.2,0.00017945,2]
[351195527,1738408240923,-754.31,0.00017945,2]
[351195529,1738408240933,-681.67171142,0.00017987,2]
[351195531,1738408240942,-500.0,0.00018078,2]
[351195533,1738408240955,-186.564853,0.00018082,2]
[351195535,1738408240964,-166.209885,0.00018082,2]
[351195537,1738408240974,-166.209885,0.00018082,2]
[351195539,1738408240983,-151.0,0.00018082,2]
[351195541,1738408240993,-151.0,0.00018082,2]
[351195543,1738408241002,-500.0,0.00018082,2]
[351195545,1738408241011,-500.0,0.00018082,2]
[351195547,1738408241021,-1899.62,0.00018082,2]
[351195549,1738408241033,-500.0,0.00018082,2]
[351195551,1738408241042,-1042.2,0.00018082,2]
[351195553,1738408241052,-754.31,0.00018082,2]
[351195556,1738408241063,-1835.48,0.000181,2]
[351195558,1738408241073,-151.0,0.000181,2]
[351195560,1738408241082,-403.99643303,0.00018141,2]
[351195562,1738408241092,-153.41013803,0.00018192,2]
[351195564,1738408241102,-151.0,0.00018217,2]
[351195566,1738408241111,-151.0,0.00018218,2]
[351195568,1738408241121,-151.0,0.00018218,2]
[351195570,1738408241130,-152.675955,0.00018218,2]
[351195572,1738408241140,-151.0,0.00018219,2]
[351195574,1738408241150,-500.0,0.00018219,2]
[351195576,1738408241159,-500.0,0.00018219,2]
[351195578,1738408241169,-1899.62,0.00018219,2]
[351195580,1738408241178,-500.0,0.00018219,2]
[351195582,1738408241188,-1042.2,0.00018219,2]
[351195584,1738408241197,-151.0,0.00018219,2]
[351195586,1738408241206,-754.31,0.00018219,2]
[351195588,1738408241215,-151.0,0.00018219,2]
[351195590,1738408241224,-151.0,0.00018219,2]
[351195592,1738408241234,-500.0,0.00018228,2]
[351195594,1738408241244,-500.0,0.00018228,2]
[351195596,1738408241253,-381.61449845,0.00018228,2]
[351195598,1738408241263,-151.0,0.00018229,2]
[351195600,1738408241273,-151.0,0.00018229,2]
[351195602,1738408241283,-157.736586,0.00018229,2]
[351195604,1738408241292,-4511.1606909,0.00018229,2]
[351195606,1738408241387,-10396.012884,0.00018229,2]
[351195607,1738408241424,-611.556,0.00018229,2]
[351195608,1738408241436,-1028.55261943,0.00018229,2]
[351195610,1738408241447,-1500.0,0.00018229,2]
[351195612,1738408241458,-8060.49809728,0.00018229,2]
[351195620,1738408241523,-245.62351999,0.00015629,2]
[351195622,1738408241533,-10716.75359798,0.00015947,2]
[351195624,1738408241543,-2034.67,0.00017945,2]
[351195626,1738408241552,-2034.67,0.00018082,2]
[351195628,1738408241562,-2034.67,0.00018219,2]
[351195630,1738408241572,-4845.53313107,0.00018229,2]
[351195632,1738408241581,-500.0,0.0001826,2]
[351195634,1738408241591,-500.0,0.00018328,2]
[351195636,1738408241600,-151.0,0.00018329,2]
[351195638,1738408241611,-587.0,0.00018329,2]
[351195640,1738408241620,-403.99643303,0.00018348,2]
[351195642,1738408241629,-500.0,0.00018356,2]
[351195644,1738408241639,-500.0,0.00018356,2]
[351195646,1738408241648,-1899.62,0.00018356,2]
[351195648,1738408241659,-500.0,0.00018356,2]
[351195650,1738408241668,-1042.2,0.00018356,2]
[351195652,1738408241677,-754.31,0.00018356,2]
[351195654,1738408241687,-2034.67,0.00018356,2]
[351195657,1738408241698,-681.67171142,0.000184,2]
[351195658,1738408241707,-161.317887,0.00018424,20]
[351195661,1738408241717,-153.41013803,0.00018438,2]
[351195663,1738408241727,-161.317887,0.00018491,5]
[351195665,1738408241736,-154.995376,0.00018492,2]
[351195667,1738408241746,-181.623181,0.00018492,2]
[351195669,1738408241755,-166.209885,0.00018493,2]
[351195671,1738408241764,-166.209885,0.00018493,2]
[351195673,1738408241774,-151.0,0.00018493,2]
[351195675,1738408241784,-500.0,0.00018493,2]
[351195677,1738408241793,-500.0,0.00018493,2]
[351195679,1738408241803,-1899.62,0.00018493,2]
[351195681,1738408241812,-500.0,0.00018493,2]
[351195683,1738408241822,-1042.2,0.00018493,2]
[351195685,1738408241831,-754.31,0.00018493,2]
[351195687,1738408241840,-2034.67,0.00018493,2]
[351195689,1738408241850,-500.0,0.00018498,2]
[351195691,1738408241859,-500.0,0.00018498,2]
[351195693,1738408241871,-186.564853,0.00018499,2]
[351195695,1738408241882,-151.0,0.00018499,2]
[351195697,1738408241891,-500.0,0.00018499,2]
[351195699,1738408241901,-500.0,0.00018499,2]
[351195701,1738408241912,-500.0,0.00018499,2]
[351195703,1738408241921,-252.76754405,0.00018499,2]
[351195705,1738408241931,-53391.39497368,0.000185,2]
[351195821,1738408242992,-247.815373,0.0001726,2]
[351195823,1738408243001,-252.1813595,0.000185,2]
[351195829,1738408243044,-10349.0,0.000185,2]
[351195831,1738408243056,-271.1600012,0.000185,2]
[351195836,1738408243098,-21990.99251881,0.000185,2]
[351195839,1738408243111,-29427.74230459,0.000185,2]
[351196974,1738408891520,345.33,0.00010959,2]
[351196975,1738408984180,263.09,0.00010959,2]
[351196976,1738408994674,263.09,0.00010959,2]
[351196977,1738409005163,175.39,0.00010959,2]
[351196978,1738409015654,876.99,0.00010959,2]
[351196980,1738409040105,211.709172,0.00013973,2]
[351196981,1738409073417,184.767536,0.00013699,2]
[351196982,1738409081104,203.142631,0.00015056,2]
[351196984,1738409128695,181.7,0.00010959,2]
[351196985,1738409139176,151.42,0.00010959,2]
[351196987,1738409149663,757.13,0.00010959,2]
[351196988,1738409211514,-160.0,0.00021097,120]
[351196989,1738409211545,-160.0,0.00021191,120]
[351196990,1738409211576,-160.0,0.00021191,120]
[351196991,1738409211604,-160.0,0.00021241,120]
[351196992,1738409211633,-160.0,0.00021251,120]
[351196993,1738409211663,-160.0,0.00021387,120]
[351196994,1738409211692,-160.0,0.00021443,120]
[351196995,1738409211721,-160.0,0.00021478,120]
[351196996,1738409212058,-1837.38,0.000215,120]
[351197151,1738409434462,-300.0,0.00015258,2]
[351197152,1738409434472,-422.59937,0.00015259,2]
[351197153,1738409434483,-437.71914681,0.00015259,2]
[351197154,1738409434520,-517.9462302,0.00015259,2]
[351197155,1738409434533,-310.12655494,0.00015259,2]
[351197156,1738409434545,-298.16790266,0.00015259,2]
[351197157,1738409434557,-12267.70001279,0.00015259,2]
[351197158,1738409434567,-179.368578,0.00015263,2]
[351197159,1738409434577,-785.35397321,0.00016338,2]
[351197160,1738409434587,-151.0,0.00016428,2]
[351197161,1738409434596,-999.70008997,0.00016437,2]
[351197162,1738409434606,-500.0,0.00016438,2]
[351197163,1738409434616,-500.0,0.00016438,2]
[351197164,1738409434625,-500.0,0.00016438,2]
[351197165,1738409434635,-157.54760887,0.00016438,2]
[351197166,1738409434647,-414.76297833,0.00016438,2]
[351197167,1738409434656,-85.23702167,0.00016438,2]
[351197169,1738409434668,-414.76297833,0.00016438,2]
[351197171,1738409434678,-500.0,0.00016438,2]
[351197172,1738409434688,-500.0,0.00016438,2]
[351197174,1738409434697,-500.0,0.00016438,2]
[351197175,1738409434706,-500.0,0.00016438,2]
[351197177,1738409434716,-500.0,0.00016438,2]
[351197179,1738409434725,-496.66896969,0.00016438,2]
[351197181,1738409434735,-500.0,0.00016438,2]
[351197183,1738409434744,-500.0,0.00016438,2]
[351197185,1738409434754,-500.0,0.00016438,2]
[351197187,1738409434763,-500.0,0.00016438,2]
[351197189,1738409434773,-500.0,0.00016438,2]
[351197191,1738409434784,-500.0,0.00016438,2]
[351197193,1738409434793,-500.0,0.00016438,2]
[351197195,1738409434803,-500.0,0.00016438,2]
[351197197,1738409434814,-500.0,0.00016438,2]
[351197199,1738409434823,-500.0,0.00016438,2]
[351197201,1738409434832,-500.0,0.00016438,2]
[351197203,1738409434842,-500.0,0.00016438,2]
[351197205,1738409434851,-501.31920245,0.00016438,2]
[351197207,1738409434861,-500.0,0.00016438,2]
[351197209,1738409434870,-500.0,0.00016438,2]
[351197210,1738409434880,-500.0,0.00016438,2]
[351197212,1738409434889,-500.0,0.00016438,2]
[351197214,1738409434899,-678.18,0.00016438,2]
[351197216,1738409434910,-500.0,0.00016438,2]
[351197218,1738409434919,-500.0,0.00016438,2]
[351197220,1738409434929,-500.0,0.00016438,2]
[351197222,1738409434939,-500.0,0.00016438,2]
[351197224,1738409434949,-500.0,0.00016438,2]
[351197226,1738409434960,-500.0,0.00016438,2]
[351197228,1738409434969,-500.0,0.00016438,2]
[351197230,1738409434979,-500.0,0.00016438,2]
[351197232,1738409434989,-500.0,0.00016438,2]
[351197234,1738409434998,-500.0,0.00016438,2]
[351197236,1738409435008,-500.0,0.00016438,2]
[351197238,1738409435017,-523.3,0.00016438,2]
[351197240,1738409435028,-500.0,0.00016438,2]
[351197242,1738409435037,-500.0,0.00016438,2]
[351197244,1738409435047,-500.0,0.00016438,2]
[351197246,1738409435057,-568.20176469,0.00016438,2]
[351197248,1738409435067,-500.0,0.00016438,2]
[351197250,1738409435076,-504.12324223,0.00016438,2]
[351197252,1738409435086,-500.0,0.00016438,2]
[351197254,1738409435095,-500.0,0.00016438,2]
[351197256,1738409435104,-332.93145897,0.00016438,2]
[351197258,1738409435113,-500.0,0.00016438,2]
[351197260,1738409435122,-500.0,0.00016438,2]
[351197262,1738409435131,-500.0,0.00016438,2]
[351197264,1738409435140,-500.0,0.00016438,2]
[351197265,1738409435149,-969.44,0.00016438,2]
[351197266,1738409435158,-500.0,0.00016438,2]
[351197267,1738409435167,-500.0,0.00016438,2]
[351197268,1738409435177,-500.0,0.00016438,2]
[351197269,1738409435186,-500.0,0.00016438,2]
[351197271,1738409435195,-500.0,0.00016438,2]
[351197273,1738409435204,-500.0,0.00016438,2]
[351197275,1738409435214,-500.0,0.00016438,2]
[351197277,1738409435224,-500.0,0.00016438,2]
[351197278,1738409435233,-500.0,0.00016438,2]
[351197280,1738409435242,-500.0,0.00016438,2]
[351197282,1738409435251,-500.0,0.00016438,2]
[351197284,1738409435261,-511.66040933,0.00016438,2]
[351197286,1738409435272,-500.0,0.00016438,2]
[351197288,1738409435282,-783.32,0.00016438,2]
[351197290,1738409435291,-783.32,0.00016438,2]
[351197292,1738409435300,-500.0,0.00016438,2]
[351197294,1738409435310,-500.0,0.00016438,2]
[351197296,1738409435321,-500.0,0.00016438,2]
[351197298,1738409435331,-565.64608276,0.00016438,2]
[351197299,1738409435340,-500.0,0.00016438,2]
[351197300,1738409435352,-500.0,0.00016438,2]
[351197301,1738409435361,-500.0,0.00016438,2]
[351197302,1738409435371,-500.0,0.00016438,2]
[351197303,1738409435380,-500.0,0.00016438,2]
[351197304,1738409435390,-500.0,0.00016438,2]
[351197305,1738409435399,-500.0,0.00016438,2]
[351197306,1738409435408,-500.0,0.00016438,2]
[351197307,1738409435418,-500.0,0.00016438,2]
[351197308,1738409435427,-500.0,0.00016438,2]
[351197309,1738409435436,-500.0,0.00016438,2]
[351197310,1738409435445,-500.0,0.00016438,2]
[351197311,1738409435455,-500.0,0.00016438,2]
[351197312,1738409435464,-500.0,0.00016574,2]
[351197313,1738409435474,-783.32,0.00016574,2]
[351197314,1738409435484,-500.0,0.00016575,2]
[351197315,1738409435493,-500.0,0.00016575,2]
[351197316,1738409435502,-500.0,0.00016575,2]
[351197317,1738409435512,-500.0,0.00016575,2]
[351197318,1738409435521,-500.0,0.00016575,2]
[351197319,1738409435531,-500.0,0.00016575,2]
[351197320,1738409435541,-500.0,0.00016575,2]
[351197321,1738409435550,-678.18,0.00016575,2]
[351197322,1738409435559,-500.0,0.00016575,2]
[351197323,1738409435569,-500.0,0.00016575,2]
[351197324,1738409435578,-500.0,0.00016575,2]
[351197325,1738409435587,-500.0,0.00016575,2]
[351197326,1738409435596,-500.0,0.00016575,2]
[351197327,1738409435606,-500.0,0.00016575,2]
[351197328,1738409435615,-500.0,0.00016575,2]
[351197329,1738409435624,-500.0,0.00016575,2]
[351197330,1738409435634,-500.0,0.00016575,2]
[351197331,1738409435643,-500.0,0.00016575,2]
[351197332,1738409435657,-969.44,0.00016575,2]
[351197333,1738409435666,-500.0,0.00016575,2]
[351197334,1738409435676,-500.0,0.00016575,2]
[351197335,1738409435685,-500.0,0.00016575,2]
[351197336,1738409435694,-500.0,0.00016575,2]
[351197337,1738409435704,-152.0,0.00016592,2]
[351197338,1738409435713,-420.0,0.00016695,2]
[351197339,1738409435723,-329.22480319,0.00016712,2]
[351197340,1738409435732,-500.0,0.00016712,2]
[351197341,1738409435741,-678.18,0.00016712,2]
[351197342,1738409435751,-500.0,0.00016712,2]
[351197343,1738409435761,-500.0,0.00016712,2]
[351197344,1738409435774,-500.0,0.00016712,2]
[351197345,1738409435785,-969.44,0.00016712,2]
[351197346,1738409435794,-500.0,0.00016712,2]
[351197347,1738409435803,-500.0,0.00016849,2]
[351197348,1738409435813,-678.18,0.00016849,2]
[351197349,1738409435822,-500.0,0.00016849,2]
[351197350,1738409435831,-500.0,0.00016849,2]
[351197351,1738409435841,-500.0,0.00016849,2]
[351197352,1738409435850,-969.44,0.00016849,2]
[351197353,1738409435859,-500.0,0.00016849,2]
[351197354,1738409435869,-210.7436375,0.00016886,2]
[351197355,1738409435879,-500.0,0.00016985,2]
[351197356,1738409435888,-500.0,0.00016985,2]
[351197357,1738409435898,-500.0,0.00016985,2]
[351197358,1738409435908,-500.0,0.00016985,2]
[351197359,1738409435917,-500.0,0.00016985,2]
[351197360,1738409435926,-500.0,0.00016985,2]
[351197361,1738409435935,-500.0,0.00016985,2]
[351197362,1738409435945,-500.0,0.00016985,2]
[351197363,1738409435954,-500.0,0.00016985,2]
[351197364,1738409435963,-294.98782356,0.00016985,2]
[351197365,1738409435973,-500.0,0.00016985,2]
[351197366,1738409435982,-500.0,0.00016985,2]
[351197367,1738409435991,-640.6929682,0.00016985,2]
[351197368,1738409436001,-500.0,0.00016985,2]
[351197369,1738409436010,-500.0,0.00016985,2]
[351197370,1738409436020,-500.0,0.00016985,2]
[351197371,1738409436030,-281.59396342,0.00016985,2]
[351197372,1738409436040,-500.0,0.00016985,2]
[351197373,1738409436049,-516.96264925,0.00016985,2]
[351197374,1738409436059,-500.0,0.00016985,2]
[351197375,1738409436068,-310.89767081,0.00016985,2]
[351197376,1738409436078,-400.84856753,0.00016985,2]
[351197377,1738409436087,-500.0,0.00016985,2]
[351197378,1738409436097,-500.0,0.00016985,2]
[351197379,1738409436107,-500.0,0.00016985,2]
[351197380,1738409436116,-500.0,0.00016985,2]
[351197381,1738409436125,-500.0,0.00016985,2]
[351197382,1738409436134,-500.0,0.00016985,2]
[351197383,1738409436143,-500.0,0.00016985,2]
[351197384,1738409436154,-500.0,0.00016985,2]
[351197385,1738409436164,-500.0,0.00016985,2]
[351197386,1738409436174,-500.0,0.00016985,2]
[351197387,1738409436183,-500.0,0.00016985,2]
[351197388,1738409436193,-500.0,0.00016985,2]
[351197389,1738409436202,-500.0,0.00016985,2]
[351197390,1738409436212,-500.0,0.00016985,2]
[351197391,1738409436221,-500.0,0.00016985,2]
[351197392,1738409436231,-500.0,0.00016985,2]
[351197393,1738409436240,-500.0,0.00016985,2]
[351197394,1738409436250,-500.0,0.00016986,2]
[351197395,1738409436260,-678.18,0.00016986,2]
[351197396,1738409436272,-500.0,0.00016986,2]
[351197397,1738409436283,-500.0,0.00016986,2]
[351197398,1738409436293,-500.0,0.00016986,2]
[351197399,1738409436302,-969.44,0.00016986,2]
[351197400,1738409436314,-500.0,0.00016986,2]
[351197401,1738409436323,-500.0,0.00017092,2]
[351197402,1738409436333,-500.0,0.00017123,2]
[351197403,1738409436344,-678.18,0.00017123,2]
[351197404,1738409436354,-500.0,0.00017123,2]
[351197405,1738409436364,-500.0,0.00017123,2]
[351197406,1738409436374,-500.0,0.00017123,2]
[351197407,1738409436383,-969.44,0.00017123,2]
[351197408,1738409436392,-500.0,0.00017123,2]
[351197409,1738409436402,-785.3539732,0.00017133,2]
[351197410,1738409436411,-500.0,0.00017164,2]
[351197411,1738409436420,-500.0,0.0001726,2]
[351197412,1738409436430,-678.18,0.0001726,2]
[351197413,1738409436440,-500.0,0.0001726,2]
[351197414,1738409436449,-500.0,0.0001726,2]
[351197415,1738409436459,-500.0,0.0001726,2]
[351197416,1738409436468,-969.44,0.0001726,2]
[351197417,1738409436477,-430.23,0.0001726,2]
[351197418,1738409436487,-501.40502854,0.00017269,2]
[351197419,1738409436497,-500.0,0.00017396,2]
[351197420,1738409436506,-783.32,0.00017396,2]
[351197421,1738409436515,-500.0,0.00017397,2]
[351197422,1738409436525,-678.18,0.00017397,2]
[351197423,1738409436536,-611.13953718,0.00017397,2]
[351197424,1738409436545,-500.0,0.00017397,2]
[351197425,1738409436554,-642.59292525,0.00017397,2]
[351197426,1738409436563,-969.44,0.00017397,2]
[351197427,1738409436572,-385.60091032,0.00017468,2]
[351197428,1738409436582,-500.0,0.00017534,2]
[351197429,1738409436592,-678.18,0.00017534,2]
[351197430,1738409436601,-500.0,0.00017534,2]
[351197431,1738409436610,-969.44,0.00017534,2]
[351197432,1738409436620,-155.547,0.0001757,2]
[351197433,1738409436630,-161.317887,0.0001764,3]
[351197434,1738409436639,-500.0,0.00017671,2]
[351197435,1738409436649,-678.18,0.00017671,2]
[351197436,1738409436658,-500.0,0.00017671,2]
[351197437,1738409436668,-969.44,0.00017671,2]
[351197438,1738409436677,-153.0,0.00017766,2]
[351197439,1738409436686,-153.0,0.00017766,2]
[351197440,1738409436695,-153.0,0.00017766,2]
[351197441,1738409436704,-153.0,0.00017766,2]
[351197442,1738409436714,-153.0,0.00017766,2]
[351197443,1738409436723,-153.0,0.00017766,2]
[351197444,1738409436733,-153.0,0.00017766,2]
[351197445,1738409436742,-179.0,0.00017766,2]
[351197446,1738409436751,-179.0,0.00017766,2]
[351197447,1738409436760,-179.0,0.00017766,2]
[351197448,1738409436770,-179.0,0.00017766,2]
[351197449,1738409436780,-179.0,0.00017766,2]
[351197450,1738409436790,-179.0,0.00017766,2]
[351197451,1738409436799,-179.0,0.00017766,2]
[351197452,1738409436809,-179.0,0.00017766,2]
[351197453,1738409436818,-179.0,0.00017766,2]
[351197454,1738409436828,-179.0,0.00017766,2]
[351197455,1738409436838,-179.0,0.00017766,2]
[351197456,1738409436848,-179.0,0.00017766,2]
[351197457,1738409436857,-179.0,0.00017766,2]
[351197458,1738409436867,-179.0,0.00017766,2]
[351197459,1738409436877,-179.0,0.00017766,2]
[351197460,1738409436886,-153.0,0.00017768,2]
[351197461,1738409436895,-153.0,0.00017768,2]
[351197462,1738409436905,-179.0,0.00017769,2]
[351197463,1738409437014,-179.0,0.00017769,2]
[351197464,1738409437024,-179.0,0.00017769,2]
[351197465,1738409437035,-179.0,0.00017769,2]
[351197466,1738409437045,-179.0,0.00017769,2]
[351197467,1738409437055,-179.0,0.00017769,2]
[351197468,1738409437064,-179.0,0.00017769,2]
[351197469,1738409437073,-179.0,0.00017769,2]
[351197470,1738409437083,-179.0,0.00017769,2]